lending/lending_fUSD_20260124
["ID","MTS","AMOUNT","RATE_DAILY","PERIOD"]
[403155945,1769214640908,-250.0,0.00015897,2]
[403155947,1769214640918,-576.0,0.00015897,2]
[403155949,1769214640927,-222.5770951,0.0001594,2]
[403155951,1769214640937,-500.0,0.00015952,2]
[403155953,1769214640945,-576.0,0.00015952,2]
[403155955,1769214640954,-166.66,0.00015977,2]
[403155957,1769214640964,-3880.43770876,0.0001599,2]
[403155959,1769214640974,-67765.64683735,0.00016,4]
[403155961,1769214640983,-500.0,0.00016006,2]
[403155963,1769214640997,-576.0,0.00016006,2]
[403155965,1769214641014,-500.0,0.00016019,2]
[403155967,1769214641023,-150.0,0.00016019,2]
[403155969,1769214641032,-150.0,0.00016019,2]
[403155971,1769214641041,-150.0,0.00016019,2]
[403155973,1769214641052,-150.0,0.00016019,2]
[403155975,1769214641062,-150.0,0.00016019,2]
[403155976,1769214641071,-500.0,0.00016019,2]
[403155977,1769214641079,-233.41,0.00016048,2]
[403155978,1769214641089,-500.0,0.00016061,2]
[403155979,1769214641097,-576.0,0.00016061,2]
[403155980,1769214641106,-500.0,0.00016074,2]
[403155981,1769214641120,-150.0,0.00016074,2]
[403155982,1769214641137,-150.0,0.00016074,2]
[403155983,1769214641146,-150.0,0.00016074,2]
[403155984,1769214641162,-150.0,0.00016074,2]
[403155986,1769214641179,-500.0,0.00016074,2]
[403155988,1769214641189,-5833.88468035,0.0001608,2]
[403155990,1769214641198,-500.0,0.00016116,2]
[403155992,1769214641207,-576.0,0.00016116,2]
[403155994,1769214641217,-150.99,0.00016116,2]
[403155996,1769214641228,-9999.99,0.00016116,2]
[403155998,1769214641237,-150.99,0.00016116,2]
[403156000,1769214641246,-2110.06,0.00016116,2]
[403156002,1769214641256,-206.13,0.00016116,2]
[403156004,1769214641265,-1195.39,0.00016116,2]
[403156006,1769214641275,-1381.88,0.00016116,2]
[403156008,1769214641284,-8515.54,0.00016116,2]
[403156010,1769214641294,-999.99,0.00016116,2]
[403156012,1769214641303,-8761.21,0.00016116,5]
[403156014,1769214641312,-500.0,0.00016129,2]
[403156016,1769214641321,-191.66284577,0.00016129,2]
[403156018,1769214641330,-243.27837996,0.00016129,2]
[403156020,1769214641338,-200.0,0.00016129,2]
[403156022,1769214641348,-154.75207679,0.00016129,2]
[403156024,1769214641357,-500.0,0.00016129,2]
[403156026,1769214641366,-576.0,0.00016171,2]
[403156028,1769214641375,-500.0,0.00016183,2]
[403156030,1769214641384,-500.0,0.00016183,2]
[403156032,1769214641393,-5000.0056348,0.000162,5]
[403156034,1769214641402,-576.0,0.00016226,2]
[403156036,1769214641411,-500.0,0.00016238,2]
[403156038,1769214641419,-500.0,0.00016238,2]
[403156040,1769214641428,-500.0,0.00016243,2]
[403156042,1769214641437,-222.57709506,0.00016267,2]
[403156044,1769214641446,-2807.00604482,0.00016273,2]
[403156046,1769214641456,-576.0,0.0001628,2]
[403156048,1769214641465,-166.66,0.00016293,2]
[403156050,1769214641474,-500.0,0.00016293,2]
[403156052,1769214641483,-500.0,0.00016293,2]
[403156054,1769214641492,-500.0,0.00016301,2]
[403156056,1769214641501,-500.0,0.00016301,2]
[403156058,1769214641510,-500.0,0.00016301,2]
[403156060,1769214641520,-150.0,0.00016301,2]
[403156062,1769214641529,-576.0,0.00016335,2]
[403156064,1769214641538,-5833.88468035,0.0001634,2]
[403156066,1769214641547,-500.0,0.00016348,2]
[403156068,1769214641556,-500.0,0.00016348,2]
[403156070,1769214641565,-500.0,0.00016356,2]
[403156072,1769214641574,-500.0,0.00016356,2]
[403156074,1769214641583,-500.0,0.00016356,2]
[403156076,1769214641592,-150.0,0.00016356,2]
[403156078,1769214641602,-151.0,0.00016356,2]
[403156080,1769214641611,-151.0,0.00016356,2]
[403156082,1769214641619,-151.0,0.00016356,2]
[403156084,1769214641629,-151.0,0.00016356,2]
[403156086,1769214641638,-151.0,0.00016356,2]
[403156088,1769214641647,-151.0,0.00016356,2]
[403156090,1769214641656,-151.0,0.00016356,2]
[403156092,1769214641666,-151.0,0.00016356,2]
[403156094,1769214641675,-192.28780433,0.00016356,2]
[403156096,1769214641684,-151.0,0.00016356,2]
[403156098,1769214641694,-3710.83,0.00016365,2]
[403156100,1769214641703,-576.0,0.0001639,2]
[403156102,1769214641713,-3710.83,0.00016399,2]
[403156104,1769214641723,-845.0,0.000164,2]
[403156107,1769214641732,-500.0,0.00016403,2]
[403156108,1769214641741,-500.0,0.00016403,2]
[403156110,1769214641750,-3569.51,0.00016405,2]
[403156112,1769214641760,-500.0,0.00016411,2]
[403156114,1769214641769,-500.0,0.00016411,2]
[403156116,1769214641779,-500.0,0.00016411,2]
[403156118,1769214641788,-255.80435828,0.00016411,2]
[403156120,1769214641797,-3710.83,0.00016434,2]
[403156122,1769214641806,-500.0,0.00016438,2]
[403156125,1769214641815,-500.0,0.00016438,2]
[403156127,1769214641828,-500.0,0.00016438,2]
[403156129,1769214641837,-500.0,0.00016438,2]
[403156130,1769214641846,-500.0,0.00016438,2]
[403156132,1769214641855,-313.29970668,0.00016438,2]
[403156134,1769214641866,-500.0,0.00016438,2]
[403156136,1769214641876,-151.0,0.00016438,2]
[403156138,1769214641885,-576.0,0.00016445,2]
[403156141,1769214641895,-500.0,0.00016457,2]
[403156143,1769214641904,-500.0,0.00016457,2]
[403156144,1769214641913,-1619.66,0.00016462,2]
[403156147,1769214641923,-500.0,0.00016465,2]
[403156149,1769214641932,-3710.83,0.00016468,2]
[403156151,1769214641941,-166.01,0.00016482,2]
[403156152,1769214641950,-500.0,0.00016493,2]
[403156154,1769214641959,-576.0,0.000165,2]
[403156156,1769214641968,-3710.83,0.00016503,2]
[403156159,1769214641978,-500.0,0.00016512,2]
[403156161,1769214641987,-500.0,0.0001652,2]
[403156163,1769214641995,-3710.83,0.00016537,2]
[403156165,1769214642005,-2807.00604482,0.00016544,2]
[403156166,1769214642014,-500.0,0.00016548,2]
[403156169,1769214642023,-576.0,0.00016554,2]
[403156171,1769214642032,-500.0,0.00016567,2]
[403156173,1769214642042,-3710.83,0.00016572,2]
[403156175,1769214642056,-500.0,0.00016575,2]
[403156177,1769214642065,-500.0,0.00016575,2]
[403156178,1769214642075,-500.0,0.00016575,3]
[403156180,1769214642083,-500.0,0.00016575,4]
[403156183,1769214642093,-500.0,0.00016575,5]
[403156185,1769214642102,-222.57709506,0.00016593,2]
[403156186,1769214642112,-5833.88468035,0.000166,2]
[403156188,1769214642122,-500.0,0.00016602,2]
[403156191,1769214642131,-3710.83,0.00016606,2]
[403156193,1769214642140,-576.0,0.00016609,2]
[403156195,1769214642150,-166.66,0.00016609,2]
[403156197,1769214642159,-500.0,0.00016622,2]
[403156199,1769214642168,-500.0,0.0001663,2]
[403156201,1769214642177,-3710.83,0.00016641,2]
[403156202,1769214642186,-420.82470435,0.00016657,2]
[403156204,1769214642195,-576.0,0.00016664,2]
[403156206,1769214642204,-3710.83,0.00016675,2]
[403156208,1769214642213,-500.0,0.00016677,2]
[403156210,1769214642222,-500.0,0.00016685,2]
[403156212,1769214642231,-3710.83,0.0001671,2]
[403156214,1769214642240,-166.41,0.00016712,2]
[403156216,1769214642250,-576.0,0.00016719,2]
[403156218,1769214642259,-500.0,0.00016731,2]
[403156220,1769214642268,-500.0,0.00016739,2]
[403156222,1769214642277,-1000.0,0.00016743,2]
[403156224,1769214642286,-3710.83,0.00016744,2]
[403156226,1769214642294,-576.0,0.00016774,2]
[403156228,1769214642304,-3710.83,0.00016778,2]
[403156230,1769214642312,-500.0,0.00016786,2]
[403156232,1769214642321,-500.0,0.00016794,2]
[403156234,1769214642330,-3710.83,0.00016813,2]
[403156236,1769214642339,-576.0,0.00016828,2]
[403156238,1769214642348,-500.0,0.00016841,2]
[403156240,1769214642357,-3710.83,0.00016847,2]
[403156242,1769214642366,-615.01555266,0.00016849,2]
[403156244,1769214642376,-5833.88468035,0.0001686,2]
[403156246,1769214642385,-3710.83,0.00016882,2]
[403156249,1769214642396,-576.0,0.00016883,2]
[403156251,1769214642406,-500.0,0.00016896,2]
[403156253,1769214642415,-3710.83,0.00016916,2]
[403156255,1769214642424,-222.57709506,0.0001692,2]
[403156257,1769214642433,-576.0,0.00016938,2]
[403156259,1769214642442,-244.0,0.0001694,2]
[403156261,1769214642451,-500.0,0.00016951,2]
[403156263,1769214642460,-3710.83,0.00016951,2]
[403156265,1769214642469,-3710.83,0.00016985,2]
[403156267,1769214642478,-576.0,0.00016993,2]
[403156269,1769214642487,-500.0,0.00017,7]
[403156271,1769214642496,-500.0,0.00017,7]
[403156273,1769214642505,-500.0,0.00017,7]
[403156275,1769214642514,-544.89,0.00017,7]
[403156277,1769214642523,-250.0,0.00017,2]
[403156279,1769214642534,-233.55062828,0.00017005,2]
[403156281,1769214642544,-3710.83,0.0001702,2]
[403156283,1769214642553,-1680.0,0.00017026,2]
[403156285,1769214642562,-688.58,0.00017041,2]
[403156287,1769214642572,-576.0,0.00017047,2]
[403156289,1769214642581,-2807.00604482,0.00017087,2]
[403156291,1769214642591,-847.23,0.00017099,2]
[403156293,1769214642600,-578.20924308,0.00017099,2]
[403156295,1769214642610,-250.0,0.00017099,2]
[403156297,1769214642619,-2468.0,0.00017099,2]
[403156299,1769214642629,-209.40437684,0.00017099,2]
[403156301,1769214642639,-500.0,0.00017099,2]
[403156303,1769214642648,-250.0,0.00017099,2]
[403156305,1769214642658,-500.0,0.00017099,2]
[403156307,1769214642667,-250.0,0.00017099,2]
[403156309,1769214642676,-500.0,0.00017099,2]
[403156311,1769214642685,-500.0,0.00017099,2]
[403156313,1769214642694,-500.0,0.00017099,2]
[403156315,1769214642703,-250.0,0.00017099,2]
[403156316,1769214642712,-500.0,0.00017099,2]
[403156317,1769214642721,-500.0,0.00017099,2]
[403156318,1769214642730,-250.0,0.00017099,2]
[403156319,1769214642739,-500.0,0.00017099,2]
[403156320,1769214642748,-250.0,0.00017099,2]
[403156321,1769214642757,-500.0,0.00017099,2]
[403156322,1769214642767,-500.0,0.00017099,2]
[403156323,1769214642776,-500.0,0.00017099,2]
[403156324,1769214642785,-250.0,0.00017099,2]
[403156325,1769214642794,-500.0,0.00017099,2]
[403156327,1769214642803,-500.0,0.00017099,2]
[403156329,1769214642812,-250.0,0.00017099,2]
[403156331,1769214642826,-500.0,0.00017099,2]
[403156333,1769214642835,-250.0,0.00017099,2]
[403156335,1769214642844,-500.0,0.00017099,2]
[403156337,1769214642853,-854.2589148,0.00017099,2]
[403156339,1769214642864,-500.0,0.00017099,2]
[403156341,1769214642873,-250.0,0.00017099,2]
[403156343,1769214642882,-500.0,0.00017099,2]
[403156345,1769214642892,-500.0,0.00017099,2]
[403156347,1769214642901,-250.0,0.00017099,2]
[403156349,1769214642911,-500.0,0.00017099,2]
[403156351,1769214642921,-500.0,0.00017099,2]
[403156353,1769214642930,-500.0,0.00017099,2]
[403156389,1769214643212,-500.0,0.00017099,2]
[403156391,1769214643223,-322.6107,0.00017099,2]
[403156393,1769214643233,-174.61919141,0.00017099,2]
[403156395,1769214643242,-250.0,0.00017099,2]
[403156397,1769214643251,-250.0,0.00017099,2]
[403156399,1769214643260,-250.0,0.00017099,2]
[403156401,1769214643269,-250.0,0.00017099,2]
[403156403,1769214643278,-250.0,0.00017099,2]
[403156405,1769214643287,-250.0,0.00017099,2]
[403156407,1769214643296,-250.0,0.00017099,2]
[403156409,1769214643306,-250.0,0.00017099,2]
[403156411,1769214643314,-250.0,0.00017099,2]
[403156413,1769214643323,-250.0,0.00017099,2]
[403156415,1769214643333,-250.0,0.00017099,2]
[403156417,1769214643342,-250.0,0.00017099,2]
[403156419,1769214643351,-250.0,0.00017099,2]
[403156421,1769214643361,-250.0,0.00017099,2]
[403156423,1769214643370,-250.0,0.00017099,2]
[403156425,1769214643379,-391.18071828,0.00017099,2]
[403156427,1769214643387,-151.0,0.00017099,2]
[403156429,1769214643397,-250.0,0.00017099,2]
[403156431,1769214643406,-151.0,0.00017099,2]
[403156433,1769214643415,-250.0,0.00017099,2]
[403156435,1769214643424,-250.0,0.00017099,2]
[403156437,1769214643433,-151.0,0.00017099,2]
[403156439,1769214643442,-250.0,0.00017099,2]
[403156441,1769214643451,-151.0,0.00017099,2]
[403156443,1769214643460,-250.0,0.00017099,2]
[403156445,1769214643469,-151.0,0.00017099,2]
[403156447,1769214643477,-151.0,0.00017099,2]
[403156449,1769214643486,-151.0,0.00017099,2]
[403156451,1769214643495,-151.0,0.00017099,2]
[403156453,1769214643505,-151.0,0.00017099,2]
[403156455,1769214643514,-151.0,0.00017099,2]
[403156457,1769214643523,-151.0,0.00017099,2]
[403156459,1769214643532,-250.0,0.00017099,2]
[403156461,1769214643541,-250.0,0.00017099,2]
[403156463,1769214643550,-500.0,0.00017099,2]
[403156465,1769214643559,-250.0,0.00017099,2]
[403156467,1769214643568,-250.0,0.00017099,2]
[403156469,1769214643577,-500.0,0.00017099,2]
[403156471,1769214643586,-250.0,0.00017099,2]
[403156473,1769214643595,-500.0,0.00017099,2]
[403156475,1769214643604,-250.0,0.00017099,2]
[403156477,1769214643613,-500.0,0.00017099,2]
[403156479,1769214643622,-250.0,0.00017099,2]
[403156481,1769214643632,-250.0,0.00017099,2]
[403156483,1769214643641,-500.0,0.00017099,2]
[403156485,1769214643650,-250.0,0.00017099,2]
[403156487,1769214643658,-500.0,0.00017099,2]
[403156488,1769214643667,-250.0,0.00017099,2]
[403156490,1769214643677,-500.0,0.00017099,2]
[403156493,1769214643686,-250.0,0.00017099,2]
[403156495,1769214643695,-500.0,0.00017099,2]
[403156497,1769214643705,-500.0,0.00017099,2]
[403156499,1769214643714,-500.0,0.00017099,2]
[403156501,1769214643723,-500.0,0.00017099,2]
[403156503,1769214643732,-500.0,0.00017099,2]
[403156504,1769214643741,-592.397278,0.00017102,2]
[403156506,1769214643750,-5833.88468035,0.0001712,2]
[403156509,1769214643759,-166.83,0.00017174,2]
[403156511,1769214643768,-500.0,0.00017178,2]
[403156513,1769214643778,-1000.0,0.00017207,2]
[403156514,1769214643787,-222.57709506,0.00017247,2]
[403156516,1769214643795,-1619.66,0.00017285,2]
[403156519,1769214643806,-324.12,0.00017296,2]
[403156520,1769214643816,-847.23,0.00017373,2]
[403156523,1769214643827,-5833.88468035,0.0001738,2]
[403156524,1769214643836,-289.0,0.00017414,2]
[403156527,1769214643845,-300.66,0.00017452,2]
[403156528,1769214643855,-300.0,0.00017452,2]
[403156531,1769214643864,-176.1,0.00017461,2]
[403156533,1769214643873,-289.0,0.00017474,2]
[403156534,1769214643882,-1000.0,0.00017481,2]
[403156536,1769214643891,-222.57709506,0.00017573,2]
[403156538,1769214643899,-289.0,0.00017584,2]
[403156541,1769214643910,-289.0,0.00017593,2]
[403156543,1769214643919,-289.0,0.000176,2]
[403156545,1769214643928,-500.0,0.00017602,6]
[403156546,1769214643937,-2807.00604482,0.00017629,2]
[403156548,1769214643946,-208.03774045,0.0001764,2]
[403156550,1769214643955,-5833.88468035,0.0001764,2]
[403156552,1769214643963,-847.23,0.00017647,2]
[403156554,1769214643972,-217.15233878,0.00017647,2]
[403156556,1769214643981,-885.86649465,0.00017647,2]
[403156558,1769214643990,-181.08010149,0.00017647,2]
[403156560,1769214643999,-289.0,0.00017659,2]
[403156562,1769214644010,-233.41,0.00017662,2]
[403156564,1769214644019,-158.36147008,0.00017679,2]
[403156566,1769214644028,-500.0,0.00017698,2]
[403156568,1769214644037,-500.0,0.00017698,2]
[403156570,1769214644046,-227.55062227,0.00017698,2]
[403156572,1769214644055,-150.0,0.00017698,2]
[403156574,1769214644064,-150.0,0.00017698,2]
[403156576,1769214644074,-500.0,0.00017698,2]
[403156578,1769214644084,-151.07703537,0.00017698,2]
[403156580,1769214644094,-150.0,0.00017698,2]
[403156582,1769214644103,-200.0,0.00017708,2]
[403156584,1769214644113,-1000.0,0.00017716,2]
[403156586,1769214644122,-1000.0,0.00017726,2]
[403156588,1769214644131,-1751.30830591,0.0001773,2]
[403156590,1769214644139,-500.0,0.00017753,2]
[403156592,1769214644147,-500.0,0.00017753,2]
[403156594,1769214644157,-172.45367867,0.00017753,2]
[403156596,1769214644166,-150.0,0.00017753,2]
[403156598,1769214644175,-500.0,0.00017753,2]
[403156600,1769214644184,-150.0,0.00017753,2]
[403156602,1769214644193,-1000.0,0.00017755,2]
[403156604,1769214644203,-1000.0,0.00017757,2]
[403156605,1769214644212,-1000.0,0.00017763,2]
[403156606,1769214644221,-1000.0,0.00017786,2]
[403156607,1769214644231,-1004.57,0.000178,2]
[403156608,1769214644240,-1000.0,0.000178,2]
[403156609,1769214644249,-1000.0,0.00017801,2]
[403156610,1769214644259,-300.0,0.00017808,2]
[403156611,1769214644269,-500.0,0.00017808,2]
[403156612,1769214644278,-157.15309479,0.00017808,2]
[403156613,1769214644287,-500.0,0.00017808,2]
[403156615,1769214644297,-150.0,0.00017808,2]
[403156617,1769214644306,-150.0,0.00017808,2]
[403156619,1769214644315,-1969.0,0.00017808,2]
[403156621,1769214644324,-6645.66140582,0.0001783,2]
[403156623,1769214644333,-1000.0,0.00017832,2]
[403156625,1769214644343,-1000.0,0.00017835,2]
[403156627,1769214644351,-1000.0,0.00017836,2]
[403156629,1769214644360,-500.0,0.00017862,2]
[403156631,1769214644369,-500.0,0.00017862,2]
[403156633,1769214644378,-150.0,0.00017863,2]
[403156635,1769214644387,-1000.0,0.00017864,2]
[403156637,1769214644396,-168.0,0.00017868,2]
[403156638,1769214644405,-324.12,0.00017882,2]
[403156640,1769214644415,-1000.0,0.00017891,2]
[403156642,1769214644424,-12466.7216,0.000179,2]
[403156644,1769214644433,-1000.0,0.000179,2]
[403156646,1769214644442,-222.57709506,0.000179,2]
[403156648,1769214644451,-2807.00604482,0.000179,2]
[403156650,1769214644461,-5833.88468035,0.000179,2]
[403156652,1769214644471,-264.96816924,0.000179,2]
[403156654,1769214644481,-358.5087,0.000179,2]
[403156656,1769214644489,-2100.0,0.000179,2]
[403156658,1769214644498,-500.0,0.00017917,2]
[403156660,1769214644508,-281.84582328,0.00017917,2]
[403156662,1769214644517,-210.33081866,0.00017917,4]
[403156664,1769214644526,-242.61943358,0.00017917,4]
[403156666,1769214644535,-150.0,0.00017918,2]
[403156668,1769214644545,-214.20333215,0.00017919,2]
[403156670,1769214644554,-847.23,0.00017921,2]
[403156672,1769214644563,-1000.0,0.00017934,2]
[403156674,1769214644572,-226.0,0.00017937,2]
[403156676,1769214644581,-500.0,0.0001797,2]
[403156678,1769214644590,-500.0,0.00017972,2]
[403156680,1769214644599,-150.0,0.00017972,2]
[403156682,1769214644608,-150.0,0.00017973,2]
[403156684,1769214644619,-150.0,0.00017973,2]
[403156686,1769214644629,-809.80690528,0.00017982,2]
[403156688,1769214644638,-1182.48947764,0.00017999,2]
[403156690,1769214644648,-500.0,0.00017999,2]
[403156692,1769214644657,-500.0,0.00017999,2]
[403156694,1769214644666,-449.86533864,0.00017999,2]
[403156696,1769214644675,-300.0,0.00017999,2]
[403156698,1769214644684,-300.0,0.00017999,2]
[403156700,1769214644694,-500.0,0.00017999,7]
[403156702,1769214644703,-500.0,0.00017999,8]
[403156704,1769214644712,-500.0,0.00017999,9]
[403156706,1769214644722,-500.0,0.00017999,10]
[403156708,1769214644731,-500.0,0.00017999,11]
[403156710,1769214644740,-500.0,0.00017999,12]
[403156712,1769214644750,-500.0,0.00017999,13]
[403156714,1769214644759,-500.0,0.00017999,14]
[403156716,1769214644768,-568.30517394,0.00017999,15]
[403156718,1769214644777,-300.0,0.00017999,2]
[403156720,1769214644786,-1713595.59106042,0.00018,2]
[403156722,1769214644796,-3172934.33914106,0.00018,2]
[403156725,1769214644811,-588.00932753,0.00018,2]
[403156975,1769214647652,-2346.55012335,0.00018,2]
[403157023,1769214648104,561.0,0.000132,5]
[403158299,1769214780860,-453.29569525,0.00014801,2]
[403158300,1769214915964,-185.73639337,0.000137,2]
[403158301,1769214918353,-248.98347385,0.000137,2]
[403158302,1769214921145,-427.48118147,0.000137,2]
[403158303,1769214928074,-166.13202639,0.000137,2]
[403158304,1769214934877,-185.90449884,0.000137,2]
[403158305,1769214936386,-360.4030633,0.000137,2]
[403158306,1769214938813,-157.44526582,0.000137,2]
[403158307,1769214938935,-277.7521115,0.000137,2]
[403158308,1769214939023,-218.82391602,0.000137,2]
[403158309,1769214939228,-196.67663152,0.000137,2]
[403158310,1769214939592,-562.1814,0.000137,2]
[403158311,1769214939628,-1059.12918871,0.000137,2]
[403158312,1769214939696,-300.0,0.000137,2]
[403158313,1769214943658,-392.83950512,0.000137,2]
[403158314,1769214951768,-272.43662925,0.000137,2]
[403158315,1769214957968,-264.69131246,0.000137,2]
[403158316,1769215003695,0.01,0.00011955,2]
[403158317,1769215003716,10000.01,0.00011955,2]
[403158318,1769215003737,620.58,0.00011955,2]
[403158319,1769215051095,-49.23740438,0.000137,2]
[403158320,1769215051117,-738.30969581,0.00014645,2]
[403158321,1769215053829,-255.19206791,0.00014645,2]
[403158322,1769215055250,-258.69331905,0.00014645,2]
[403158323,1769215061684,-166.71859657,0.00014645,2]
[403158324,1769215063773,-221.84434696,0.00014645,2]
[403158325,1769215071308,-152.55509174,0.00014645,2]
[403158326,1769215080443,-314.91192107,0.00014645,2]
[403158327,1769215088249,-288.38501587,0.00014645,2]
[403158328,1769215094419,-187.49372235,0.00014645,2]
[403158329,1769215096965,-274.0,0.00014645,2]
[403158330,1769215102635,-155.26686864,0.00014645,2]
[403158331,1769215104499,-192.33981352,0.00014645,2]
[403158332,1769215276547,-34.28954051,0.00014645,2]
[403158333,1769215276569,-193.27711953,0.00014723,2]
[403158335,1769215592095,-174.49008603,0.00014441,2]
[403158340,1769215745037,186.19,0.00011838,2]
[403158345,1769215832463,-25.50991397,0.00014441,2]
[403158346,1769215832474,-46.70430475,0.00014801,2]
[403158347,1769215832484,-505.83872512,0.00014914,2]
[403158348,1769215832493,-267.59984792,0.00015087,2]
[403158349,1769215832503,-1041.86927978,0.00015178,2]
[403158350,1769215832514,-12456.32072022,0.00015178,2]
[403158351,1769215832523,-13498.19,0.00015178,2]
[403158352,1769215832532,-206.85,0.00015178,2]
[403158354,1769215832540,-206.85,0.00015178,2]
[403158356,1769215832550,-206.85,0.00015178,2]
[403158358,1769215832559,-206.85,0.00015178,2]
[403158360,1769215832567,-206.85,0.00015178,2]
[403158362,1769215832577,-1200.0,0.00015186,2]
[403158364,1769215832586,-409.50487885,0.00015187,2]
[403158365,1769215832595,-600.0,0.00015187,2]
[403158366,1769215832604,-318.32411993,0.00015187,2]
[403158367,1769215832615,-362.48276754,0.00015187,2]
[403158368,1769215832624,-500.0,0.00015187,2]
[403158369,1769215832633,-239.97304493,0.00015187,2]
[403158370,1769215832643,-150.0,0.00015187,2]
[403158371,1769215832651,-847.23,0.00015187,2]
[403158372,1769215832661,-893979.56962588,0.00015188,2]
[403158373,1769215832672,-43856.82519219,0.00015188,2]
[403158374,1769215832712,-500.0,0.00015186,2]
[403158375,1769215832721,-500.0,0.00015186,2]
[403158376,1769215832730,-4425.5848157,0.00015188,2]
[403158377,1769215832741,-10749.43756616,0.00015188,2]
[403158381,1769215838455,-478.95997779,0.00015186,2]
[403158382,1769215838508,-21.04002221,0.00015186,2]
[403158383,1769215838518,-441.23859508,0.00015186,2]
[403158384,1769215838527,-500.0,0.00015186,2]
[403158385,1769215838536,-500.0,0.00015186,2]
[403158386,1769215838546,-500.0,0.00015186,2]
[403158387,1769215838556,-290.81698928,0.00015186,2]
[403158388,1769215838624,-209.18301072,0.00015186,2]
[403158389,1769215838633,-500.0,0.00015186,2]
[403158390,1769215838643,-500.0,0.00015186,2]
[403158391,1769215838652,-500.0,0.00015186,2]
[403158392,1769215838663,-500.0,0.00015186,2]
[403158393,1769215838672,-17778.58876076,0.00015188,2]
[403158458,1769215840638,-1.7e-07,0.00015188,2]
[403158459,1769215840650,-715.73266217,0.00015188,2]
[403158460,1769215840735,-28494.26137697,0.00015188,2]
[403158461,1769215840744,-576.0,0.00015196,2]
[403158462,1769215840754,-200.0,0.00015196,2]
[403158463,1769215840763,-500.0,0.00015196,2]
[403158464,1769215840772,-150.0,0.00015196,2]
[403158465,1769215840781,-500.0,0.00015196,2]
[403158466,1769215840790,-500.0,0.00015196,2]
[403158467,1769215840800,-227.55062227,0.00015196,2]
[403158468,1769215840809,-150.0,0.00015196,2]
[403158469,1769215840818,-150.0,0.00015196,2]
[403158470,1769215840828,-500.0,0.00015196,2]
[403158471,1769215840838,-150.0,0.00015196,2]
[403158472,1769215840850,-576.0,0.00015251,2]
[403158473,1769215840859,-500.0,0.00015251,2]
[403158474,1769215840868,-500.0,0.00015251,2]
[403158475,1769215840878,-500.0,0.00015251,2]
[403158476,1769215840887,-172.45367867,0.00015251,2]
[403158477,1769215840897,-150.0,0.00015251,2]
[403158478,1769215840907,-500.0,0.00015251,2]
[403158480,1769215840916,-150.0,0.00015251,2]
[403158482,1769215840925,-300.0,0.00015268,2]
[403158484,1769215840934,-500.0,0.0001527,2]
[403158486,1769215840943,-500.0,0.0001527,2]
[403158488,1769215840952,-500.0,0.0001527,2]
[403158490,1769215840961,-300.0,0.00015287,2]
[403158492,1769215840970,-2500.0,0.00015288,2]
[403158494,1769215840978,-222.5770951,0.00015288,2]
[403158496,1769215840987,-10130.07641334,0.00015288,2]
[403158498,1769215840996,-576.0,0.00015306,2]
[403158500,1769215841005,-500.0,0.00015306,2]
[403158502,1769215841014,-300.0,0.00015306,2]